bitfinex-derivatives/quotes_SOLF0:USTF0_20241120
["timestamp","ask_amount","ask_price","bid_price","bid_amount"]
[1732076773453,8.90153079,233.57,233.49,6.76333079]
[1732076774058,2.1382,233.57,233.49,6.76333079]
[1732076774259,8.90153079,233.57,233.52,2.1386]
[1732076775753,2.1385,233.54,233.46,4.6769]
[1732076776048,6.76333079,233.55,233.47,6.76333079]
[1732076776353,8.90173079,233.55,233.49,6.76333079]
[1732076778158,6.76333079,233.55,233.49,6.76333079]
[1732076778356,2.1385,233.54,233.49,8.90223079]
[1732076778748,6.76333079,233.55,233.47,6.76333079]
[1732076778956,6.76333079,233.53,233.46,6.76333079]
[1732076779862,2.1387,233.52,233.47,2.1391]
[1732076783363,2.1385,233.54,233.49,2.1388]
[1732076783755,8.90183079,233.54,233.49,2.1388]
[1732076784029,6.76333079,233.54,233.49,2.1388]
[1732076784556,6.76333079,233.55,233.49,2.1388]
[1732076785365,8.90173079,233.55,233.49,2.1388]
[1732076786064,2.1385,233.54,233.49,2.1388]
[1732076786767,2.34,233.6,233.49,2.1388]
[1732076787066,6.76333079,233.55,233.49,2.1388]
[1732076787665,8.90143079,233.58,233.5,6.76333079]
[1732076788166,8.90143079,233.58,233.53,2.1385]
[1732076788666,2.1381,233.58,233.53,2.1385]
[1732076788966,6.76333079,233.57,233.53,2.1385]
[1732076789366,8.90153079,233.57,233.51,2.1386]
[1732076789668,8.90153079,233.57,233.5,2.34]
[1732076790583,6.76333079,233.54,233.5,2.34]
[1732076791267,6.76333079,233.54,233.52,2.1386]
[1732076793475,8.90183079,233.54,233.5,2.34]
[1732076793770,6.76333079,233.54,233.5,2.34]
[1732076794069,6.76333079,233.52,233.5,2.34]
[1732076794793,6.76333079,233.52,233.49,2.1389]
[1732076795774,6.76333079,233.55,233.51,2.1387]
[1732076796277,6.76333079,233.53,233.47,2.34]
[1732076797375,6.76333079,233.53,233.49,2.1388]
[1732076805979,6.76333079,233.51,233.49,2.1388]
[1732076808676,6.76333079,233.51,233.47,2.139]
[1732076808874,6.76333079,233.48,233.47,2.139]
[1732076813187,2.1386,233.52,233.48,2.139]
[1732076813384,6.76333079,233.5,233.48,2.139]
[1732076813825,2.1386,233.52,233.48,2.139]
[1732076814089,2.1385,233.54,233.49,2.1389]
[1732076814383,6.76333079,233.51,233.49,2.1389]
[1732076816184,6.76333079,233.51,233.45,77.97013]
[1732076816382,6.76333079,233.51,233.48,2.139]
[1732076817889,2.1386,233.53,233.48,2.139]
[1732076818092,6.76333079,233.52,233.49,2.1389]
[1732076818894,6.76333079,233.52,233.45,77.97013]
[1732076819187,8.90193079,233.52,233.46,2.34]
[1732076819593,8.90193079,233.52,233.48,2.139]
[1732076819594,6.76333079,233.52,233.48,2.139]
[1732076820524,6.76333079,233.5,233.46,2.34]
[1732076820693,6.76333079,233.48,233.46,2.34]
[1732076821195,6.76333079,233.48,233.46,4.4792]
[1732076821385,6.76333079,233.5,233.46,4.4792]
[1732076821582,6.76333079,233.5,233.46,2.34]
[1732076821892,2.1388,233.51,233.46,2.34]
[1732076822087,6.76333079,233.5,233.46,2.34]
[1732076822792,6.76333079,233.5,233.47,2.1391]
[1732076822990,6.76333079,233.5,233.46,2.34]
[1732076823193,6.76333079,233.48,233.46,2.34]
[1732076823692,6.76333079,233.48,233.45,77.97013]
[1732076825292,8.90233079,233.48,233.45,77.97013]
[1732076829897,2.139,233.48,233.45,77.97013]
[1732076833700,2.1388,233.51,233.46,2.1391]
[1732076834101,2.1388,233.51,233.45,77.97013]
[1732076834602,2.1388,233.51,233.46,2.1392]
[1732076835732,4.4471,233.55,233.46,2.1392]
[1732076835908,2.1388,233.5,233.46,2.1392]
[1732076839409,2.1387,233.51,233.46,2.1392]
[1732076839702,4.4471,233.55,233.45,77.97013]
[1732076840102,2.1387,233.52,233.45,77.97013]
[1732076840300,2.1387,233.52,233.47,2.139]
[1732076841304,2.1387,233.52,233.45,77.97013]
[1732076841507,2.1387,233.52,233.47,2.1391]
[1732076841707,2.1387,233.52,233.45,77.97013]
[1732076841905,2.1382,233.57,233.45,77.97013]
[1732076842312,4.426,233.63,233.45,77.97013]
[1732076842501,2.1381,233.59,233.53,2.1385]
[1732076843409,2.1381,233.59,233.54,2.1384]
[1732076847407,4.426,233.63,233.51,2.32]
[1732076847612,2.1377,233.62,233.56,2.1382]
[1732076847811,2.1377,233.62,233.51,2.32]
[1732076848107,2.1377,233.62,233.54,2.1384]
[1732076848312,2.1377,233.62,233.51,2.32]
[1732076849310,2.1377,233.62,233.56,2.1382]
[1732076851631,177.84798084,233.72,233.57,2.32]
[1732076851806,4.41045717,233.72,233.58,2.32]
[1732076852007,2.1372,233.69,233.62,2.1377]
[1732076852221,4.41045717,233.72,233.62,2.1377]
[1732076852415,4.41045717,233.72,233.61,2.32]
[1732076853917,4.41045717,233.72,233.62,2.1377]
[1732076853918,2.1373,233.67,233.62,2.1377]
[1732076854318,2.1373,233.67,233.61,2.32]
[1732076854617,2.1374,233.66,233.61,2.32]
[1732076855012,2.1373,233.68,233.61,4.4578]
[1732076855217,4.41045717,233.72,233.61,4.4578]
[1732076855418,4.41045717,233.72,233.61,2.32]
[1732076855824,4.41045717,233.72,233.46,4.3611]
[1732076856026,4.41045717,233.72,233.47,2.32]
[1732076856215,2.1378,233.62,233.56,2.1382]
[1732076856417,4.41045717,233.72,233.55,2.32]
[1732076857618,2.1377,233.62,233.57,2.1382]
[1732076859316,4.41045717,233.72,233.55,2.32]
[1732076859317,2.09045717,233.72,233.55,2.32]
[1732076859617,2.32,233.72,233.55,2.32]
[1732076859922,4.44173172,233.72,233.55,2.32]
[1732076860421,2.12173172,233.72,233.65,2.1374]
[1732076860627,4.3756,233.74,233.65,2.1374]
[1732076860815,2.10575413,233.73,233.65,2.1374]
[1732076861117,4.3756,233.74,233.65,2.1374]
[1732076861925,2.137,233.71,233.65,2.1374]
[1732076862714,2.137,233.7,233.65,2.1374]
[1732076866623,6.49611409,233.74,233.62,2.32]
[1732076868327,2.1371,233.7,233.64,2.1375]
[1732076870216,2.1371,233.7,233.62,2.32]
[1732076870423,2.1371,233.7,233.65,2.1374]
[1732076870722,175.52798084,233.82,233.62,2.32]
[1732076870723,2.1365,233.75,233.62,2.32]
[1732076870918,2.6006,233.81,233.62,2.32]
[1732076871522,2.1367,233.73,233.62,2.32]
[1732076873226,2.1367,233.73,233.68,2.1372]
[1732076873425,2.1367,233.73,233.69,2.32]
[1732076874423,2.6006,233.81,233.69,2.32]
[1732076874623,2.6006,233.81,233.69,4.4571]
[1732076874624,2.1367,233.74,233.69,4.4571]
[1732076874818,2.1367,233.74,233.69,2.1371]
[1732076878021,2.1367,233.73,233.68,2.32]
[1732076878348,2.1283089,233.75,233.55,1.2567]
[1732076878535,2.1373,233.67,233.56,2.32]
[1732076878725,2.13023381,233.71,233.56,2.32]
[1732076878929,1.2918,233.74,233.56,2.32]
[1732076879232,2.1372,233.68,233.62,2.1377]
[1732076879430,2.1372,233.68,233.62,4.4577]
[1732076879826,2.5711,233.73,233.62,2.32]
[1732076880335,2.1368,233.72,233.67,2.1373]
[1732076880628,2.5711,233.73,233.62,2.32]
[1732076880932,1.3187,233.73,233.62,2.32]
[1732076881526,2.1369,233.72,233.62,2.32]
[1732076882132,2.1369,233.72,233.66,2.1373]
[1732076882631,1.3187,233.73,233.6,2.1379]
[1732076882830,1.3187,233.73,233.61,2.32]
[1732076883026,1.3187,233.73,233.62,2.32]
[1732076883227,2.1373,233.67,233.62,2.32]
[1732076884037,2.1373,233.67,233.62,4.4577]
[1732076884524,2.137,233.7,233.62,2.32]
[1732076884634,1.3187,233.73,233.62,2.32]
[1732076884840,3.6387,233.73,233.54,1.2767]
[1732076885029,3.6387,233.73,233.55,2.32]
[1732076885227,3.6387,233.73,233.57,2.1382]
[1732076885731,3.6387,233.73,233.56,2.32]
[1732076885936,1.0,233.72,233.55,4.4583]
[1732076886832,2.1378,233.61,233.48,1.3298]
[1732076887025,2.1378,233.61,233.49,2.32]
[1732076888035,2.1378,233.61,233.52,2.1386]
[1732076888337,2.1379,233.6,233.49,2.32]
[1732076889437,2.1378,233.61,233.55,2.1384]
[1732076890938,2.1378,233.61,233.56,2.1383]
[1732076892842,1.2478,233.62,233.58,2.138]
[1732076893137,3.4088,233.65,233.54,2.32]
[1732076893335,2.1375,233.64,233.58,2.1381]
[1732076893929,1.2713,233.65,233.54,2.32]
[1732076894129,1.2421,233.66,233.61,2.1378]
[1732076894130,3.3795,233.66,233.61,2.1378]
[1732076895139,1.2421,233.66,233.61,2.32]
[1732076895340,2.1372,233.68,233.61,2.32]
[1732076895739,2.456,233.71,233.61,2.32]
[1732076895740,2.1373,233.67,233.61,2.32]
[1732076896338,2.1373,233.67,233.62,2.1377]
[1732076897537,2.1372,233.68,233.61,4.4577]
[1732076897738,2.1372,233.68,233.61,2.32]
[1732076897932,2.456,233.71,233.61,2.32]
[1732076898138,2.1373,233.67,233.62,2.1377]
[1732076898640,2.456,233.71,233.61,2.32]
[1732076900343,1.2835,233.74,233.61,2.32]
[1732076900543,2.1369,233.72,233.61,2.32]
[1732076900738,1.2835,233.74,233.61,2.32]
[1732076901440,1.2835,233.74,233.65,2.1374]
[1732076901934,2.1369,233.71,233.65,2.1374]
[1732076902641,2.1368,233.72,233.62,2.32]
[1732076904244,2.1368,233.72,233.67,2.1372]
[1732076904944,2.6642,233.79,233.68,2.32]
[1732076905842,2.1363,233.78,233.68,2.32]
[1732076906251,2.6642,233.79,233.68,2.32]
[1732076906549,1.3283,233.79,233.73,2.1367]
[1732076907440,2.1363,233.78,233.72,2.1368]
[1732076911250,2.1364,233.77,233.72,2.1368]
[1732076913354,1.3283,233.79,233.68,2.32]
[1732076913580,3.4645,233.79,233.73,2.1367]
[1732076913954,1.3283,233.79,233.73,2.1367]
[1732076915369,2.1363,233.78,233.73,2.1367]
[1732076918243,2.1364,233.77,233.72,2.1368]
[1732076920052,2.1364,233.77,233.73,2.1367]
[1732076921454,2.1365,233.76,233.68,2.32]
[1732076921653,1.3283,233.79,233.68,2.32]
[1732076922052,2.1363,233.78,233.72,2.1367]
[1732076922248,2.1363,233.78,233.68,2.32]
[1732076922759,2.1363,233.78,233.73,2.1367]
[1732076924154,1.2862,233.82,233.56,15.46291446]
[1732076924356,2.1361,233.8,233.75,2.1365]
[1732076924562,1.2862,233.82,233.75,2.1365]
[1732076926391,2.1361,233.8,233.75,2.1365]
[1732076927761,2.1362,233.79,233.74,2.32]
[1732076929068,1.2862,233.82,233.74,2.32]
[1732076929870,2.1363,233.78,233.74,2.32]
[1732076931170,1.2862,233.82,233.74,2.32]
[1732076931862,2.1365,233.76,233.74,2.32]
[1732076932468,2.1361,233.8,233.74,2.32]
[1732076932663,1.2862,233.82,233.74,2.32]
[1732076933773,1.2862,233.82,233.71,2.3]
[1732076935273,2.1365,233.76,233.59,2.5531]
[1732076935569,1.2862,233.82,233.6,2.3]
[1732076935769,2.1366,233.75,233.6,2.3]
[1732076935970,1.2862,233.82,233.6,2.3]
[1732076936771,2.1366,233.74,233.59,2.5531]
[1732076936971,2.1366,233.74,233.61,2.3]
[1732076937166,2.1366,233.74,233.68,2.1371]
[1732076937368,2.1366,233.74,233.69,2.3]
[1732076938272,2.1366,233.74,233.69,4.437]
[1732076940273,2.1367,233.73,233.68,4.4372]
[1732076940469,2.14920548,233.75,233.68,4.4372]
[1732076940771,2.3,233.81,233.68,2.1372]
[1732076941775,2.3,233.81,233.67,2.3]
[1732076942084,2.3,233.81,233.69,2.1371]
[1732076942375,2.1366,233.74,233.69,2.1371]
[1732076942570,4.32802382,233.74,233.69,2.1371]
[1732076942770,2.1366,233.74,233.69,2.1371]
[1732076943273,4.23756985,233.74,233.69,2.1371]
[1732076944474,2.3,233.81,233.67,2.3]
[1732076944676,1.2862,233.82,233.67,2.3]
[1732076945878,1.2862,233.82,233.71,2.1368]
[1732076946180,1.2862,233.82,233.67,2.3]
[1732076946383,2.1367,233.73,233.68,2.1371]
[1732076946581,2.0990453,233.73,233.68,2.1371]
[1732076946876,2.3,233.79,233.67,2.3]
[1732076947179,1.22,233.78,233.67,2.3]
[1732076948341,2.1366,233.74,233.69,2.1371]
[1732076949178,2.1366,233.74,233.68,2.1372]
[1732076949478,2.1367,233.73,233.68,2.1372]
[1732076949873,2.08887046,233.73,233.59,2.5531]
[1732076950076,2.137,233.7,233.6,2.3]
[1732076950781,2.137,233.7,233.64,2.1375]
[1732076950984,2.16264813,233.73,233.64,2.3]
[1732076951182,2.1373,233.67,233.64,2.3]
[1732076952181,2.11945077,233.7,233.64,2.3]
[1732076952484,1.2402,233.77,233.64,2.3]
[1732076952987,2.1372,233.68,233.62,2.1377]
[1732076953184,2.11309059,233.68,233.6,2.3]
[1732076953384,2.3,233.73,233.6,2.3]
[1732076953685,1.2476,233.72,233.6,2.3]
[1732076953886,2.1374,233.66,233.61,2.1377]
[1732076954905,3.38101083,233.72,233.64,2.1375]
[1732076955111,3.38101083,233.72,233.6,2.3]
[1732076955587,2.1371,233.7,233.64,2.1375]
[1732076955984,2.1371,233.69,233.64,2.1375]
[1732076958284,2.3,233.75,233.6,2.3]
[1732076958485,4.45736522,233.75,233.6,2.3]
[1732076958786,4.45736522,233.75,233.64,2.1375]
[1732076958787,2.1369,233.71,233.64,2.1375]
[1732076958984,3.3,233.76,233.6,2.3]
[1732076959482,1.3405,233.75,233.6,2.3]
[1732076959682,3.43477186,233.75,233.6,2.3]
[1732076959988,2.137,233.7,233.66,2.1373]
[1732076962782,2.14196616,233.73,233.53,2.6425]
[1732076962984,2.1373,233.67,233.62,2.1377]
[1732076963192,2.18572204,233.71,233.56,2.3]
[1732076963394,1.3405,233.75,233.56,2.3]
[1732076963594,1.3405,233.75,233.63,2.1376]
[1732076963990,2.1374,233.66,233.61,2.1378]
[1732076964191,1.3405,233.75,233.56,2.3]
[1732076964491,3.51959151,233.75,233.56,2.3]
[1732076964705,2.1372,233.68,233.56,2.3]
[1732076965094,2.15149995,233.69,233.56,2.3]
[1732076965298,1.3405,233.75,233.56,2.3]
[1732076965697,2.1375,233.65,233.6,2.1378]
[1732076966396,2.1375,233.65,233.61,2.1378]
[1732076967002,3.53066109,233.75,233.56,2.3]
[1732076967807,5.83066109,233.75,233.56,2.3]
[1732076968298,5.83066109,233.75,233.66,2.1373]
[1732076968299,2.137,233.71,233.66,2.1373]
[1732076968801,2.137,233.7,233.66,2.1373]
[1732076969000,3.53066109,233.75,233.67,2.1373]
[1732076969194,1.3405,233.75,233.63,2.3]
[1732076969394,2.1367,233.73,233.63,2.3]
[1732076969599,2.1367,233.73,233.67,2.1372]
[1732076969798,2.1367,233.73,233.63,2.3]
[1732076970302,1.2402,233.77,233.63,2.3]
[1732076971305,2.1365,233.76,233.7,2.137]
[1732076973708,2.1365,233.76,233.69,2.3]
[1732076974006,2.1365,233.76,233.71,2.1369]
[1732076974397,1.2402,233.77,233.69,2.3]
[1732076974608,2.1365,233.75,233.7,2.137]
[1732076975303,2.1366,233.74,233.69,4.4371]
[1732076975704,1.2402,233.77,233.69,2.3]
[1732076976213,2.1366,233.75,233.69,2.3]
[1732076976507,1.2402,233.77,233.69,2.3]
[1732076976710,2.1366,233.75,233.69,2.3]
[1732076976908,1.2402,233.77,233.69,2.3]
[1732076978404,1.2402,233.77,233.7,2.137]
[1732076978405,2.1365,233.75,233.7,2.137]
[1732076978704,2.1365,233.75,233.69,2.3]
[1732076979914,3.3766,233.77,233.69,2.3]
[1732076980501,1.2402,233.77,233.69,2.3]
[1732076980700,2.1365,233.76,233.72,2.1368]
[1732076981033,1.2402,233.77,233.69,2.3]
[1732076981423,2.1365,233.75,233.71,2.1369]
[1732076981607,1.2402,233.77,233.69,2.3]
[1732076982002,1.2402,233.77,233.7,2.1369]
[1732076982003,2.1365,233.76,233.7,2.1369]
[1732076982207,1.2402,233.77,233.7,2.1369]
[1732076983010,1.2402,233.77,233.69,2.3]
[1732076983213,2.1366,233.74,233.69,2.3]
[1732076983411,1.2402,233.77,233.69,2.3]
[1732076984423,1.2402,233.77,233.7,2.137]
[1732076984424,2.1366,233.75,233.7,2.137]
[1732076984609,4.31317572,233.75,233.7,2.137]
[1732076985713,2.1366,233.74,233.7,2.137]
[1732076985909,1.2402,233.77,233.7,2.137]
[1732076987009,1.2402,233.77,233.69,2.3]
[1732076987207,2.1367,233.74,233.69,2.3]
[1732076988115,80.0,233.7,233.69,2.3]
[1732076988314,80.0,233.7,233.69,4.4371]
[1732076993316,80.0,233.7,233.69,2.1371]
[1732076995021,75.5629,233.65,233.57,2.62911765]
[1732076995217,75.5629,233.65,233.58,2.3]
[1732076996323,75.5629,233.65,233.64,2.1375]
[1732076996626,75.5629,233.65,233.64,4.4375]
[1732077002033,75.5629,233.65,233.64,2.1375]
[1732077002234,75.5629,233.65,233.64,4.4375]
[1732077006838,71.1254,233.6,233.56,4.2764]
[1732077007035,71.1254,233.6,233.57,4.93085957]
[1732077007239,71.1254,233.6,233.57,2.3]
[1732077008341,71.1254,233.6,233.59,2.138]
[1732077009141,71.1254,233.6,233.59,4.438]
[1732077009340,71.1254,233.6,233.59,2.138]
[1732077009543,71.1254,233.6,233.59,4.438]
[1732077009796,71.1254,233.6,233.49,5.91397305]
[1732077009797,71.1254,233.6,233.58,2.138]
[1732077009938,71.1254,233.6,233.57,2.3]
[1732077010641,71.1254,233.6,233.59,2.138]
[1732077015345,71.1254,233.6,233.59,4.438]
[1732077017548,71.1254,233.6,233.55,2.1383]
[1732077017744,71.1254,233.6,233.45,77.97013]
[1732077017745,71.1254,233.6,233.53,2.3]
[1732077017945,71.1254,233.6,233.54,2.3]
[1732077018249,71.1254,233.6,233.59,2.138]
[1732077019756,71.1254,233.6,233.57,2.1381]
[1732077020052,71.1254,233.6,233.55,2.3]
[1732077020750,71.1254,233.6,233.56,2.1382]
[1732077020948,73.4254,233.6,233.38,5.91397305]
[1732077021255,1.2546,233.59,233.36,6.1775]
[1732077021554,2.1384,233.55,233.42,2.3]
[1732077021752,2.5934,233.54,233.42,2.3]
[1732077021949,4.7319,233.54,233.48,2.139]
[1732077022552,2.5934,233.54,233.5,2.1388]
[1732077023453,2.5934,233.54,233.42,2.3]
[1732077025151,2.5934,233.54,233.44,2.3]
[1732077025754,3.42,233.53,233.44,2.3]
[1732077026954,4.01,233.52,233.44,2.3]
[1732077027348,4.01,233.52,233.47,2.1391]
[1732077027549,4.01,233.52,233.44,2.3]
[1732077027957,4.01,233.52,233.5,2.1388]
[1732077032460,4.01,233.52,233.51,2.1387]
[1732077034361,2.99,233.57,233.56,2.1383]
[1732077034865,6.88,233.62,233.55,2.3]
[1732077035575,9.87,233.62,233.55,2.3]
[1732077035975,9.1,233.61,233.56,2.1382]
[1732077036166,9.1,233.61,233.55,2.3]
[1732077036167,12.52,233.61,233.55,2.3]
[1732077036869,12.52,233.61,233.6,2.1379]
[1732077038489,18.12,233.61,233.6,2.1379]
[1732077039077,21.24,233.61,233.6,2.1379]
[1732077054085,17.82,233.61,233.6,2.1379]
[1732077057281,2.16479396,233.83,233.56,2.62568822]
[1732077057485,2.136,233.81,233.56,3.97298822]
[1732077057785,1.2155,233.8,233.78,2.1362]
[1732077058006,3.5555,233.8,233.79,2.28]
[1732077058407,1.2155,233.8,233.79,2.28]
[1732077060186,1.2155,233.8,233.64,30.8]
[1732077060384,1.2155,233.8,233.65,2.28]
[1732077060687,1.2155,233.8,233.64,30.8]
[1732077060918,1.2155,233.8,233.65,2.28]
[1732077062090,2.1362,233.79,233.7,2.137]
[1732077062289,2.1362,233.79,233.71,2.28]
[1732077062795,2.1366,233.75,233.66,2.1373]
[1732077063092,1.3046,233.74,233.7,0.2568]
[1732077063294,1.3046,233.74,233.68,2.28]
[1732077063493,2.1367,233.73,233.68,2.28]
[1732077063696,1.2215,233.72,233.48,1.2649]
[1732077063890,1.2215,233.72,233.51,30.8]
[1732077065283,1.2215,233.72,233.64,2.1375]
[1732077065487,1.2215,233.72,233.65,2.28]
[1732077065890,1.2215,233.72,233.65,4.4174]
[1732077066086,1.2215,233.72,233.65,2.28]
[1732077066394,1.2215,233.72,233.67,2.1373]
[1732077066599,1.2215,233.72,233.65,2.28]
[1732077067190,1.2215,233.72,233.66,2.1373]
[1732077067387,1.2215,233.72,233.65,2.28]
[1732077068798,1.2215,233.72,233.51,30.8]
[1732077068990,1.2215,233.72,233.52,2.28]
[1732077069191,3.3583,233.72,233.52,2.28]
[1732077069404,1.2215,233.72,233.51,30.8]
[1732077069839,1.2215,233.72,233.6,2.1379]
[1732077069840,2.1373,233.68,233.6,2.1379]
[1732077069998,2.1373,233.68,233.61,2.28]
[1732077070503,2.1373,233.67,233.62,2.28]
[1732077070902,2.1373,233.67,233.59,2.1379]
[1732077071119,2.1373,233.67,233.62,2.28]
[1732077071604,1.2215,233.72,233.62,2.28]
[1732077071800,2.34,233.69,233.62,2.28]
[1732077072708,1.85,233.68,233.63,2.1376]
[1732077073225,1.85,233.68,233.62,2.28]
[1732077074495,1.85,233.68,233.66,2.1373]
[1732077074699,1.85,233.68,233.62,2.28]
[1732077075503,1.85,233.68,233.65,2.1374]
[1732077076795,1.85,233.68,233.5,4.20866428]
[1732077076796,1.85,233.68,233.61,2.1377]
[1732077077017,1.85,233.68,233.62,2.28]
[1732077077198,2.1373,233.67,233.62,2.28]
[1732077077504,1.85,233.68,233.62,2.28]
[1732077077704,3.42,233.66,233.62,2.28]
[1732077078812,3.42,233.66,233.61,2.28]
[1732077079000,1.2555,233.65,233.46,30.8]
[1732077079302,1.2555,233.65,233.49,2.63809556]
[1732077079626,1.334,233.64,233.55,2.1383]
[1732077079716,1.334,233.64,233.56,2.28]
[1732077080301,2.1377,233.62,233.53,2.1385]
[1732077080505,1.334,233.64,233.54,2.28]
[1732077080897,3.51386551,233.64,233.54,2.28]
[1732077081102,2.1379,233.6,233.55,2.28]
[1732077081899,3.49253043,233.63,233.55,2.28]
[1732077082108,2.1378,233.61,233.55,2.28]
[1732077082774,5.72,233.6,233.55,2.28]
[1732077084110,5.72,233.6,233.55,4.4183]
[1732077085614,5.72,233.6,233.56,2.1383]
[1732077088412,1.85,233.59,233.56,2.1383]
[1732077089408,1.85,233.59,233.55,2.28]
[1732077090407,3.71,233.58,233.55,2.28]
[1732077091208,3.71,233.58,233.55,4.4183]
[1732077093218,3.71,233.58,233.55,2.28]
[1732077093607,3.71,233.58,233.53,2.1385]
[1732077093808,3.71,233.58,233.54,2.28]
[1732077094913,5.8481,233.58,233.54,2.28]
[1732077095114,5.8481,233.58,233.52,2.28]
[1732077095919,5.8481,233.58,233.51,2.1386]
[1732077096116,3.71,233.58,233.51,4.4186]
[1732077096416,2.1382,233.57,233.51,4.4186]
[1732077096711,2.1385,233.54,233.47,4.419]
[1732077096908,1.2269,233.56,233.45,77.97013]
[1732077097111,1.3145,233.53,233.45,77.97013]
[1732077097322,1.2202,233.52,233.45,77.97013]
[1732077097712,2.1389,233.49,233.45,77.97013]
[1732077098006,3.36660023,233.52,233.45,77.97013]
[1732077098207,2.1391,233.47,233.45,68.74434]
[1732077099317,3.38,233.46,233.45,68.74434]
[1732077099519,3.38,233.46,233.45,56.73854]
[1732077099719,3.38,233.46,233.45,54.43854001]
[1732077100110,5.57495864,233.46,233.45,54.43854001]
[1732077100325,5.57495864,233.46,233.32,2.1404]
[1732077100518,5.57495864,233.46,233.31,2.28]
[1732077100819,5.57495864,233.46,233.28,2.28]
[1732077101022,1.0,233.45,233.28,2.28]
[1732077102150,2.1397,233.41,233.28,2.28]
[1732077102524,2.28,233.44,233.28,2.28]
[1732077102816,2.1396,233.42,233.34,2.1402]
[1732077103027,2.28,233.44,233.34,2.1402]
[1732077103028,2.28,233.44,233.34,2.28]
[1732077103917,4.4194,233.44,233.34,2.28]
[1732077104123,1.85,233.43,233.34,2.28]
[1732077105353,1.85,233.43,233.37,2.14]
[1732077105525,1.85,233.43,233.34,2.28]
[1732077106020,1.85,233.43,233.38,2.1399]
[1732077106222,4.38,233.42,233.34,2.28]
[1732077106413,4.38,233.42,233.36,2.1401]
[1732077106619,6.72,233.42,233.36,2.1401]
[1732077106820,8.8596,233.42,233.34,2.28]
[1732077107018,6.72,233.42,233.34,2.1402]
[1732077107221,6.72,233.42,233.31,2.28]
[1732077108224,2.1398,233.39,233.32,2.1404]
[1732077109020,2.1397,233.41,233.33,2.1404]
[1732077109216,6.72,233.42,233.33,2.1404]
[1732077110129,6.72,233.42,233.31,4.4205]
[1732077110822,2.14,233.38,233.32,2.1404]
[1732077111022,6.72,233.42,233.31,2.28]
[1732077111319,2.14,233.37,233.31,2.1405]
[1732077111760,4.76,233.41,233.28,2.28]
[1732077112023,2.1402,233.35,233.24,2.28]
[1732077112321,4.76,233.41,233.24,2.28]
[1732077112723,4.76,233.41,233.25,2.28]
[1732077112924,4.76,233.41,233.23,1.2493]
[1732077113125,3.42,233.4,233.24,2.28]
[1732077113632,2.1406,233.31,233.25,2.141]
[1732077114426,2.1407,233.3,233.22,1.2473]
[1732077114632,2.16645435,233.33,233.22,1.2473]
[1732077114827,2.28,233.35,233.22,1.2473]
[1732077115328,2.1409,233.27,233.22,1.2473]
[1732077116835,2.141,233.26,233.22,1.2473]
[1732077117219,2.1409,233.27,233.22,1.2473]
[1732077118221,2.1411,233.26,233.19,2.1416]
[1732077118673,2.1411,233.26,233.18,0.26648]
[1732077119531,2.1409,233.28,233.21,2.1415]